[Event "*** Titled Tuesday Blitz"]
[Site "Chess.com"]
[Date "2018.04.03"]
[Round "4"]
[White "Yaacovn"]
[Black "oskariot"]
[Result "1-0"]
[WhiteElo "2637"]
[BlackElo "2415"]
[TimeControl "180+2"]
[EndTime "13:53:43 PDT"]
[Termination "Yaacovn won by resignation"]

1. d4 {[%clk 0:03:01.9]} 1... g6 {[%clk 0:03:01.9]} 2. Nf3 {[%clk 0:03:03.4]}
2... Bg7 {[%clk 0:03:02.8]} 3. e3 {[%clk 0:03:05.3]} 3... Nf6 {[%clk 0:03:03]}
4. Be2 {[%clk 0:03:07.2]} 4... O-O {[%clk 0:03:04.4]} 5. O-O {[%clk 0:03:09.1]}
5... c5 {[%clk 0:03:06.2]} 6. b3 {[%clk 0:03:11]} 6... cxd4 {[%clk 0:03:07.3]}
7. Nxd4 {[%clk 0:03:12.9]} 7... Nc6 {[%clk 0:03:08.1]} 8. Bb2 {[%clk 0:03:14.2]}
8... d6 {[%clk 0:03:08.9]} 9. c4 {[%clk 0:03:15.4]} 9... Bd7 {[%clk 0:03:10.3]}
10. Qd2 {[%clk 0:03:16.9]} 10... Nxd4 {[%clk 0:02:48.8]} 11. Bxd4 {[%clk
0:03:18.8]} 11... Bc6 {[%clk 0:02:49.7]} 12. Qc2 {[%clk 0:03:17.1]} 12... Qa5
{[%clk 0:02:44.7]} 13. Nd2 {[%clk 0:03:17]} 13... Rfc8 {[%clk 0:02:40.7]} 14.
Bf3 {[%clk 0:03:14.4]} 14... Bxf3 {[%clk 0:02:38.4]} 15. Nxf3 {[%clk 0:03:16.3]}
15... b5 {[%clk 0:02:39.7]} 16. Nd2 {[%clk 0:03:04.7]} 16... bxc4 {[%clk
0:01:45.3]} 17. Nxc4 {[%clk 0:02:51.1]} 17... Qa6 {[%clk 0:01:32.8]} 18. Qd1
{[%clk 0:02:35.5]} 18... Qb5 {[%clk 0:01:02]} 19. Qf3 {[%clk 0:02:33.5]} 19...
Qc6 {[%clk 0:00:46.5]} 20. Rfc1 {[%clk 0:02:22.2]} 20... Qxf3 {[%clk 0:00:46.9]}
21. gxf3 {[%clk 0:02:24.1]} 21... Nd5 {[%clk 0:00:45.4]} 22. Bxg7 {[%clk
0:02:23.2]} 22... Kxg7 {[%clk 0:00:47.3]} 23. a3 {[%clk 0:02:20]} 23... f5
{[%clk 0:00:34.1]} 24. Kf1 {[%clk 0:02:15.7]} 24... Kf6 {[%clk 0:00:32.1]} 25.
Ke1 {[%clk 0:02:12.8]} 25... g5 {[%clk 0:00:33.3]} 26. Kd2 {[%clk 0:02:14]}
26... h5 {[%clk 0:00:33.3]} 27. Rc2 {[%clk 0:02:05]} 27... g4 {[%clk 0:00:33.6]}
28. f4 {[%clk 0:02:02.1]} 28... Ke6 {[%clk 0:00:34.9]} 29. Rac1 {[%clk
0:01:55.3]} 29... Nf6 {[%clk 0:00:35.9]} 30. Ke2 {[%clk 0:01:55.3]} 30... Ne4
{[%clk 0:00:21.2]} 31. Na5 {[%clk 0:01:55.8]} 31... Rxc2+ {[%clk 0:00:17]} 32.
Rxc2 {[%clk 0:01:57.7]} 32... Kd5 {[%clk 0:00:18.5]} 33. Nc6 {[%clk 0:01:43.3]}
33... e5 {[%clk 0:00:17.1]} 34. fxe5 {[%clk 0:01:41.3]} 34... dxe5 {[%clk
0:00:18.4]} 35. Nb4+ {[%clk 0:01:42.3]} 35... Ke6 {[%clk 0:00:18.5]} 36. Rc6+
{[%clk 0:01:43.9]} 36... Kf7 {[%clk 0:00:18.3]} 37. Ra6 {[%clk 0:01:42]} 37...
Rd8 {[%clk 0:00:18.7]} 38. Nd3 {[%clk 0:01:38.8]} 38... Nc3+ {[%clk 0:00:10.9]}
39. Kd2 {[%clk 0:01:39.9]} 39... e4 {[%clk 0:00:09.2]} 40. Kxc3 {[%clk
0:01:39.8]} 40... Rxd3+ {[%clk 0:00:09.9]} 41. Kc2 {[%clk 0:01:40.9]} 41... Rd7
{[%clk 0:00:11.2]} 42. Rh6 {[%clk 0:01:40.6]} 42... Kg7 {[%clk 0:00:09.2]} 43.
Rxh5 {[%clk 0:01:41.2]} 43... Rf7 {[%clk 0:00:07]} 44. h3 {[%clk 0:01:38.3]}
44... Kg6 {[%clk 0:00:05.3]} 45. Rh8 {[%clk 0:01:38.5]} 45... gxh3 {[%clk
0:00:05.6]} 46. Rxh3 {[%clk 0:01:39.5]} 46... f4 {[%clk 0:00:07.5]} 47. Rh4
{[%clk 0:01:39.1]} 47... fxe3 {[%clk 0:00:07]} 48. fxe3 {[%clk 0:01:41]} 48...
Rf2+ {[%clk 0:00:07.2]} 49. Kc3 {[%clk 0:01:42]} 49... Kf5 {[%clk 0:00:08.6]}
50. Rh8 {[%clk 0:01:37]} 50... Re2 {[%clk 0:00:08.2]} 51. Rf8+ {[%clk 0:01:37]}
51... Ke5 {[%clk 0:00:08.1]} 52. Re8+ {[%clk 0:01:36.1]} 52... Kf5 {[%clk
0:00:09.1]} 53. Kd4 {[%clk 0:01:31.9]} 53... Rd2+ {[%clk 0:00:10.1]} 54. Kc4
{[%clk 0:01:33.3]} 54... Rd3 {[%clk 0:00:12]} 55. Ra8 {[%clk 0:01:32]} 55...
Rxe3 {[%clk 0:00:12.1]} 56. Rxa7 {[%clk 0:01:33.5]} 56... Re1 {[%clk 0:00:13.6]}
57. Rf7+ {[%clk 0:01:33.4]} 57... Ke5 {[%clk 0:00:14.2]} 58. Re7+ {[%clk
0:01:32.6]} 58... Kf4 {[%clk 0:00:15.1]} 59. a4 {[%clk 0:01:31.2]} 59... Rc1+
{[%clk 0:00:15.1]} 60. Kd4 {[%clk 0:01:28.4]} 60... Rd1+ {[%clk 0:00:16.4]} 61.
Kc3 {[%clk 0:01:29.3]} 61... e3 {[%clk 0:00:17.2]} 62. a5 {[%clk 0:01:29]} 62...
Kf3 {[%clk 0:00:18.3]} 63. Rf7+ {[%clk 0:01:29.9]} 63... Ke4 {[%clk 0:00:18.4]}
64. Re7+ {[%clk 0:01:21.7]} 64... Kf3 {[%clk 0:00:18.8]} 65. b4 {[%clk
0:01:19.3]} 65... e2 {[%clk 0:00:18.3]} 66. b5 {[%clk 0:01:17.5]} 66... e1=Q+
{[%clk 0:00:12.1]} 67. Rxe1 {[%clk 0:01:18.5]} 67... Rxe1 {[%clk 0:00:14]} 68.
b6 {[%clk 0:01:19.9]} 68... Rb1 {[%clk 0:00:12.7]} 69. Kc4 {[%clk 0:01:20.9]}
69... Ke4 {[%clk 0:00:13.9]} 70. Kc5 {[%clk 0:01:21.9]} 70... Ke5 {[%clk
0:00:15.3]} 71. a6 {[%clk 0:01:22.8]} 71... Rc1+ {[%clk 0:00:16.2]} 72. Kb5
{[%clk 0:01:24.2]} 72... Kd6 {[%clk 0:00:17.1]} 73. a7 {[%clk 0:01:25.4]} 73...
Ra1 {[%clk 0:00:17.4]} 74. b7 {[%clk 0:01:24.5]} 74... Rb1+ {[%clk 0:00:18.6]}
75. Kc4 {[%clk 0:01:24.2]} 75... Rxb7 {[%clk 0:00:18]} 76. a8=Q {[%clk
0:01:25.5]} 76... Rc7+ {[%clk 0:00:19.7]} 77. Kd4 {[%clk 0:01:26.6]} 77... Kd7
{[%clk 0:00:21.6]} 78. Kd5 {[%clk 0:01:27.3]} 78... Rc1 {[%clk 0:00:20.5]} 79.
Qa4+ {[%clk 0:01:27.9]} 79... Kd8 {[%clk 0:00:19.9]} 80. Qh4+ {[%clk 0:01:27.2]}
80... Kd7 {[%clk 0:00:19.5]} 81. Qh7+ {[%clk 0:01:28]} 81... Kc8 {[%clk
0:00:19.8]} 82. Qh8+ {[%clk 0:01:27.7]} 82... Kd7 {[%clk 0:00:20]} 83. Qg7+
{[%clk 0:01:27.8]} 83... Kc8 {[%clk 0:00:20.3]} 84. Qf8+ {[%clk 0:01:27.1]}
84... Kd7 {[%clk 0:00:17.5]} 85. Qf5+ {[%clk 0:01:28]} 85... Ke7 {[%clk
0:00:10.4]} 86. Qg5+ {[%clk 0:01:28.9]} 1-0

[Event "*** Titled Tuesday Blitz"]
[Site "Chess.com"]
[Date "2018.04.03"]
[Round "4"]
[White "PchelkinVK"]
[Black "Albertu"]
[Result "0-1"]
[WhiteElo "2371"]
[BlackElo "2248"]
[TimeControl "180+2"]
[EndTime "13:53:47 PDT"]
[Termination "Albertu won on time"]

1. d4 {[%clk 0:03:00.2]} 1... Nf6 {[%clk 0:03:00.5]} 2. Nc3 {[%clk 0:03:01.5]}
2... d5 {[%clk 0:02:59.3]} 3. Bf4 {[%clk 0:03:02.9]} 3... Bf5 {[%clk 0:02:51.8]}
4. Nf3 {[%clk 0:03:04]} 4... h6 {[%clk 0:02:44.1]} 5. e3 {[%clk 0:03:05.1]} 5...
e6 {[%clk 0:02:44.6]} 6. Ne5 {[%clk 0:03:06.1]} 6... Be7 {[%clk 0:02:43]} 7. g4
{[%clk 0:03:07.1]} 7... Bh7 {[%clk 0:02:43.1]} 8. h4 {[%clk 0:03:08.6]} 8... c5
{[%clk 0:01:25.7]} 9. g5 {[%clk 0:02:59.8]} 9... Nfd7 {[%clk 0:01:23.8]} 10. Bb5
{[%clk 0:02:06.2]} 10... a6 {[%clk 0:01:09.9]} 11. g6 {[%clk 0:02:06.8]} 11...
Bxg6 {[%clk 0:01:07.4]} 12. Nxg6 {[%clk 0:02:05.8]} 12... fxg6 {[%clk
0:01:09.3]} 13. Bd3 {[%clk 0:01:48.8]} 13... Kf7 {[%clk 0:01:05.9]} 14. Rg1
{[%clk 0:01:26.6]} 14... g5 {[%clk 0:00:53.3]} 15. hxg5 {[%clk 0:00:49.6]} 15...
hxg5 {[%clk 0:00:55.2]} 16. Bg3 {[%clk 0:00:33.7]} 16... Nc6 {[%clk 0:00:54.3]}
17. Qg4 {[%clk 0:00:28.1]} 17... cxd4 {[%clk 0:00:52.2]} 18. exd4 {[%clk
0:00:27.6]} 18... Qb6 {[%clk 0:00:52.8]} 19. O-O-O {[%clk 0:00:26.6]} 19... Rac8
{[%clk 0:00:43.5]} 20. Bg6+ {[%clk 0:00:20.5]} 20... Kxg6 {[%clk 0:00:42.5]} 21.
Qxe6+ {[%clk 0:00:22]} 21... Nf6 {[%clk 0:00:39.5]} 22. Bf4 {[%clk 0:00:20.6]}
22... Rh5 {[%clk 0:00:28.2]} 23. Bxg5 {[%clk 0:00:16.4]} 23... Rxg5 {[%clk
0:00:27.7]} 24. Rxg5+ {[%clk 0:00:18.3]} 24... Kxg5 {[%clk 0:00:29.1]} 25. Rg1+
{[%clk 0:00:19.8]} 25... Kh6 {[%clk 0:00:22.1]} 26. Qf5 {[%clk 0:00:20.1]} 26...
Ng4 {[%clk 0:00:17.2]} 27. Qxg4 {[%clk 0:00:13.8]} 27... g5 {[%clk 0:00:18.2]}
28. Qe6+ {[%clk 0:00:14.4]} 28... Kg7 {[%clk 0:00:18.1]} 29. Nxd5 {[%clk
0:00:11.7]} 29... Qd8 {[%clk 0:00:17.6]} 30. Nf4 {[%clk 0:00:09.7]} 30... Bf6
{[%clk 0:00:11.7]} 31. Nh5+ {[%clk 0:00:10.1]} 31... Kg6 {[%clk 0:00:13.1]} 32.
Nf4+ {[%clk 0:00:10.8]} 32... Kg7 {[%clk 0:00:13.7]} 33. Nh5+ {[%clk 0:00:08.5]}
33... Kg6 {[%clk 0:00:14.8]} 34. Nf4+ {[%clk 0:00:09.3]} 34... Kg7 {[%clk
0:00:15.4]} 35. Qf5 {[%clk 0:00:09.3]} 35... Nxd4 {[%clk 0:00:15.6]} 36. Qg6+
{[%clk 0:00:08.3]} 36... Kf8 {[%clk 0:00:15.5]} 37. Nh5 {[%clk 0:00:05.2]} 37...
Rxc2+ {[%clk 0:00:16]} 38. Kb1 {[%clk 0:00:06.4]} 38... Rxb2+ {[%clk 0:00:15.5]}
39. Kxb2 {[%clk 0:00:06.2]} 39... Qb6+ {[%clk 0:00:14.5]} 40. Kc1 {[%clk
0:00:07.3]} 40... Ne2+ {[%clk 0:00:14]} 41. Kd1 {[%clk 0:00:08]} 41... Nc3+
{[%clk 0:00:10.8]} 42. Kc1 {[%clk 0:00:07.7]} 42... Nxa2+ {[%clk 0:00:06.1]} 43.
Kd1 {[%clk 0:00:08.6]} 43... Nc3+ {[%clk 0:00:06.3]} 44. Kc1 {[%clk 0:00:08.9]}
44... Ne2+ {[%clk 0:00:05.9]} 45. Kd1 {[%clk 0:00:10]} 45... Nc3+ {[%clk
0:00:07]} 46. Ke1 {[%clk 0:00:10.8]} 46... Qe6+ {[%clk 0:00:04.8]} 47. Kf1
{[%clk 0:00:10.1]} 47... Qe2+ {[%clk 0:00:05.2]} 48. Kg2 {[%clk 0:00:11.4]}
48... Qg4+ {[%clk 0:00:06.5]} 49. Kf1 {[%clk 0:00:11.5]} 49... Qd1+ {[%clk
0:00:06.6]} 50. Kg2 {[%clk 0:00:12.7]} 50... Qg4+ {[%clk 0:00:07.6]} 51. Ng3
{[%clk 0:00:14.2]} 51... Qe6 {[%clk 0:00:02.9]} 52. Rh1 {[%clk 0:00:13.6]} 52...
Qc6+ {[%clk 0:00:03.5]} 53. f3 {[%clk 0:00:14.9]} 53... Nd5 {[%clk 0:00:04.7]}
54. Rh7 {[%clk 0:00:10.9]} 54... Nf4+ {[%clk 0:00:05.7]} 55. Kh2 {[%clk
0:00:10.4]} 55... Nxg6 {[%clk 0:00:07.6]} 56. Rh6 {[%clk 0:00:11.7]} 56... Qxf3
{[%clk 0:00:08.3]} 57. Rxg6 {[%clk 0:00:11.2]} 57... Be5 {[%clk 0:00:09.7]} 58.
Rxg5 {[%clk 0:00:11.9]} 58... Bxg3+ {[%clk 0:00:11.3]} 59. Rxg3 {[%clk
0:00:13.2]} 59... Qxg3+ {[%clk 0:00:13.2]} 60. Kxg3 {[%clk 0:00:13.1]} 60... Ke7
{[%clk 0:00:15.1]} 0-1

[Event "*** Titled Tuesday Blitz"]
[Site "Chess.com"]
[Date "2018.04.03"]
[Round "4"]
[White "Margency"]
[Black "anon102030"]
[Result "1-0"]
[WhiteElo "2593"]
[BlackElo "2713"]
[TimeControl "180+2"]
[EndTime "13:54:02 PDT"]
[Termination "Margency won by resignation"]

1. e4 {[%clk 0:03:01.9]} 1... e5 {[%clk 0:03:00.5]} 2. Nf3 {[%clk 0:03:02.8]}
2... Nc6 {[%clk 0:03:01]} 3. Bc4 {[%clk 0:03:04.3]} 3... Bc5 {[%clk 0:03:01.5]}
4. d3 {[%clk 0:03:05.8]} 4... Nf6 {[%clk 0:03:02]} 5. O-O {[%clk 0:03:07.3]}
5... d6 {[%clk 0:03:02.9]} 6. c3 {[%clk 0:03:08.1]} 6... Bb6 {[%clk 0:03:01.4]}
7. Bb3 {[%clk 0:03:09.3]} 7... h6 {[%clk 0:03:00.1]} 8. Nbd2 {[%clk 0:03:09.2]}
8... O-O {[%clk 0:02:55.3]} 9. h3 {[%clk 0:03:09]} 9... Be6 {[%clk 0:02:55.4]}
10. Nc4 {[%clk 0:03:07.4]} 10... Qd7 {[%clk 0:02:50.4]} 11. a4 {[%clk
0:03:01.7]} 11... Bxc4 {[%clk 0:02:46.9]} 12. Bxc4 {[%clk 0:03:02.5]} 12... a5
{[%clk 0:02:48.6]} 13. Re1 {[%clk 0:02:59.5]} 13... Rfe8 {[%clk 0:02:45.7]} 14.
Qb3 {[%clk 0:02:46.7]} 14... Rad8 {[%clk 0:02:44.3]} 15. Bd2 {[%clk 0:02:39.4]}
15... d5 {[%clk 0:02:36.8]} 16. exd5 {[%clk 0:02:40]} 16... Nxd5 {[%clk
0:02:38.7]} 17. Rad1 {[%clk 0:02:39.9]} 17... Qd6 {[%clk 0:02:29.9]} 18. Bc1
{[%clk 0:02:34.2]} 18... Rd7 {[%clk 0:02:22.7]} 19. Nd2 {[%clk 0:02:22.2]} 19...
f5 {[%clk 0:02:09.2]} 20. Ne4 {[%clk 0:02:19.1]} 20... Qe6 {[%clk 0:02:03.7]}
21. Be3 {[%clk 0:02:13.5]} 21... Bxe3 {[%clk 0:01:56.1]} 22. fxe3 {[%clk
0:02:09.6]} 22... b6 {[%clk 0:01:37]} 23. Nf2 {[%clk 0:01:59]} 23... Nce7 {[%clk
0:01:08.4]} 24. e4 {[%clk 0:01:59]} 24... c6 {[%clk 0:01:09.3]} 25. exd5 {[%clk
0:01:58.1]} 25... Nxd5 {[%clk 0:01:07.1]} 26. Re2 {[%clk 0:01:46.1]} 26... Kh7
{[%clk 0:01:06.9]} 27. Rde1 {[%clk 0:01:46.9]} 27... Qd6 {[%clk 0:01:05]} 28.
Re3 {[%clk 0:01:09.4]} 28... Nxe3 {[%clk 0:01:03.4]} 29. Rxe3 {[%clk 0:01:09.2]}
29... Qc5 {[%clk 0:00:59.6]} 30. Re2 {[%clk 0:01:06.2]} 30... Ree7 {[%clk
0:00:30.8]} 31. Be6 {[%clk 0:01:04.3]} 31... Rd8 {[%clk 0:00:11.9]} 32. Bxf5+
{[%clk 0:01:05.1]} 32... g6 {[%clk 0:00:13.8]} 33. Be4 {[%clk 0:01:01.9]} 33...
Rf8 {[%clk 0:00:13.6]} 34. Qd1 {[%clk 0:00:47.9]} 34... Rd7 {[%clk 0:00:09.1]}
35. Qd2 {[%clk 0:00:40.3]} 35... Kg7 {[%clk 0:00:10.3]} 36. Qe3 {[%clk
0:00:41.3]} 36... Qd6 {[%clk 0:00:06.6]} 37. Qxb6 {[%clk 0:00:37.5]} 37... h5
{[%clk 0:00:06.9]} 38. Qxc6 {[%clk 0:00:35.8]} 38... Rb8 {[%clk 0:00:03.7]} 39.
Qxd6 {[%clk 0:00:33.2]} 39... Rxd6 {[%clk 0:00:05.6]} 40. Nd1 {[%clk 0:00:33.4]}
40... Rdb6 {[%clk 0:00:06.5]} 41. Kf2 {[%clk 0:00:32.2]} 41... Rf8+ {[%clk
0:00:07.8]} 42. Ke1 {[%clk 0:00:33.2]} 42... Rbf6 {[%clk 0:00:09.3]} 43. Ne3
{[%clk 0:00:34.3]} 43... Rb8 {[%clk 0:00:09.7]} 44. Nc4 {[%clk 0:00:34.9]} 44...
Ra6 {[%clk 0:00:08.3]} 45. Kd2 {[%clk 0:00:35.6]} 45... Re8 {[%clk 0:00:08.3]}
46. Bf3 {[%clk 0:00:35.6]} 46... Kf6 {[%clk 0:00:08.7]} 47. Bb7 {[%clk
0:00:35.4]} 47... Ra7 {[%clk 0:00:08.8]} 48. Bc6 {[%clk 0:00:36.8]} 48... Ree7
{[%clk 0:00:09.9]} 49. Rf2+ {[%clk 0:00:37.4]} 49... Kg7 {[%clk 0:00:10.8]} 50.
Be4 {[%clk 0:00:38.4]} 50... Rac7 {[%clk 0:00:10.4]} 51. Ke3 {[%clk 0:00:39.4]}
51... Ra7 {[%clk 0:00:11.2]} 52. g4 {[%clk 0:00:40.5]} 52... hxg4 {[%clk
0:00:11.6]} 53. hxg4 {[%clk 0:00:42.4]} 53... Kh6 {[%clk 0:00:13.4]} 54. Nd6
{[%clk 0:00:41.6]} 54... Kg5 {[%clk 0:00:13.9]} 55. Nb5 {[%clk 0:00:40]} 55...
Rad7 {[%clk 0:00:14.5]} 56. c4 {[%clk 0:00:41.1]} 56... Re6 {[%clk 0:00:12.3]}
57. c5 {[%clk 0:00:40.9]} 57... Kxg4 {[%clk 0:00:11.9]} 58. c6 {[%clk
0:00:42.1]} 58... Rd8 {[%clk 0:00:12.1]} 59. c7 {[%clk 0:00:41.9]} 59... Rh8
{[%clk 0:00:12.7]} 60. Bb7 {[%clk 0:00:41.3]} 60... Rh3+ {[%clk 0:00:11.3]} 61.
Bf3+ {[%clk 0:00:42.5]} 61... Rxf3+ {[%clk 0:00:09.8]} 62. Rxf3 {[%clk
0:00:43.6]} 62... Rc6 {[%clk 0:00:11.7]} 63. Rf6 {[%clk 0:00:42]} 63... Rxf6
{[%clk 0:00:12.1]} 64. c8=Q+ {[%clk 0:00:42.6]} 64... Kg3 {[%clk 0:00:14]} 65.
Qd8 {[%clk 0:00:42.7]} 65... Rf5 {[%clk 0:00:13.6]} 66. Nd6 {[%clk 0:00:43.2]}
66... Rf3+ {[%clk 0:00:14.2]} 67. Ke4 {[%clk 0:00:44.6]} 67... Rf4+ {[%clk
0:00:15]} 68. Kxe5 {[%clk 0:00:45.9]} 68... Rxa4 {[%clk 0:00:16.9]} 69. Ne4+
{[%clk 0:00:44.4]} 69... Kf3 {[%clk 0:00:17.4]} 70. Qg5 {[%clk 0:00:39.5]} 70...
Rb4 {[%clk 0:00:15.8]} 71. Qg3+ {[%clk 0:00:38.6]} 71... Ke2 {[%clk 0:00:16]}
72. d4 {[%clk 0:00:39.5]} 72... a4 {[%clk 0:00:11.9]} 73. Qf2+ {[%clk
0:00:37.9]} 73... Kd3 {[%clk 0:00:11.6]} 74. Qf3+ {[%clk 0:00:38.7]} 74... Kc4
{[%clk 0:00:11.9]} 75. Qc3+ {[%clk 0:00:39.7]} 75... Kb5 {[%clk 0:00:12.9]} 76.
Nd6+ {[%clk 0:00:40.8]} 76... Kb6 {[%clk 0:00:13.3]} 77. Qxb4+ {[%clk
0:00:41.8]} 1-0

[Event "*** Titled Tuesday Blitz"]
[Site "Chess.com"]
[Date "2018.04.03"]
[Round "4"]
[White "Alopekos"]
[Black "Eliwood44"]
[Result "1/2-1/2"]
[WhiteElo "2313"]
[BlackElo "2233"]
[TimeControl "180+2"]
[EndTime "13:54:12 PDT"]
[Termination "Game drawn by repetition"]

1. e4 {[%clk 0:02:56.7]} 1... e5 {[%clk 0:03:00]} 2. Nf3 {[%clk 0:02:57.6]} 2...
Nc6 {[%clk 0:03:00.6]} 3. Bb5 {[%clk 0:02:56.9]} 3... a6 {[%clk 0:03:00]} 4. Ba4
{[%clk 0:02:55.9]} 4... Nf6 {[%clk 0:02:59.1]} 5. O-O {[%clk 0:02:56.1]} 5... b5
{[%clk 0:03:00.4]} 6. Bb3 {[%clk 0:02:56.8]} 6... Be7 {[%clk 0:03:02]} 7. a4
{[%clk 0:02:54.5]} 7... b4 {[%clk 0:03:02.1]} 8. d3 {[%clk 0:02:51.1]} 8... O-O
{[%clk 0:03:01.3]} 9. a5 {[%clk 0:02:46]} 9... h6 {[%clk 0:03:00.3]} 10. Re1
{[%clk 0:02:28.1]} 10... Rb8 {[%clk 0:02:58]} 11. Nbd2 {[%clk 0:02:29.1]} 11...
d6 {[%clk 0:02:57.6]} 12. c3 {[%clk 0:02:25.4]} 12... Kh8 {[%clk 0:02:55]} 13.
Nc4 {[%clk 0:02:22.7]} 13... Bg4 {[%clk 0:02:52]} 14. Ba4 {[%clk 0:02:19.2]}
14... Na7 {[%clk 0:02:46.2]} 15. h3 {[%clk 0:02:17.9]} 15... Be6 {[%clk
0:02:44]} 16. Ne3 {[%clk 0:01:56.9]} 16... Nd7 {[%clk 0:02:44.1]} 17. d4 {[%clk
0:01:55]} 17... exd4 {[%clk 0:02:41.4]} 18. cxd4 {[%clk 0:01:48.9]} 18... Nf6
{[%clk 0:02:38.3]} 19. Qd3 {[%clk 0:01:40.7]} 19... Nb5 {[%clk 0:02:35.3]} 20.
d5 {[%clk 0:01:33.2]} 20... Bc8 {[%clk 0:02:33]} 21. Bd2 {[%clk 0:01:31.9]}
21... Nd7 {[%clk 0:01:46.4]} 22. Bxb4 {[%clk 0:01:20.8]} 22... Bf6 {[%clk
0:01:47.1]} 23. Ra2 {[%clk 0:01:16.3]} 23... Nc5 {[%clk 0:01:20]} 24. Bxc5
{[%clk 0:01:10.6]} 24... dxc5 {[%clk 0:01:20.7]} 25. e5 {[%clk 0:01:12.2]} 25...
Be7 {[%clk 0:01:20.8]} 26. Bc2 {[%clk 0:00:42.1]} 26... g6 {[%clk 0:01:18.6]}
27. e6 {[%clk 0:00:40.9]} 27... f5 {[%clk 0:01:15.1]} 28. Ne5 {[%clk 0:00:40.7]}
28... Rf6 {[%clk 0:01:05.6]} 29. Nf7+ {[%clk 0:00:13.3]} 29... Rxf7 {[%clk
0:01:05.4]} 30. exf7 {[%clk 0:00:15.2]} 30... Nd4 {[%clk 0:01:04.7]} 31. Ba4
{[%clk 0:00:08.6]} 31... Qf8 {[%clk 0:01:02.2]} 32. Be8 {[%clk 0:00:09.4]} 32...
Bf6 {[%clk 0:00:58.3]} 33. Nc2 {[%clk 0:00:06.6]} 33... Nxc2 {[%clk 0:00:54.2]}
34. Qxc2 {[%clk 0:00:07.6]} 34... Bb7 {[%clk 0:00:55.2]} 35. Qc4 {[%clk
0:00:05.1]} 35... Kg7 {[%clk 0:00:55.6]} 36. b4 {[%clk 0:00:03.9]} 36... cxb4
{[%clk 0:00:53.6]} 37. Qxc7 {[%clk 0:00:05]} 37... Bxd5 {[%clk 0:00:53.7]} 38.
Rae2 {[%clk 0:00:04.1]} 38... Rb7 {[%clk 0:00:53]} 39. Qc8 {[%clk 0:00:03.6]}
39... Qd6 {[%clk 0:00:43]} 40. Rd1 {[%clk 0:00:03.5]} 40... Re7 {[%clk
0:00:36.3]} 41. Rxe7 {[%clk 0:00:03.6]} 41... Bxe7 {[%clk 0:00:37.3]} 42. Qc1
{[%clk 0:00:03.6]} 42... Qe5 {[%clk 0:00:31.5]} 43. Qd2 {[%clk 0:00:04]} 43...
Bxf7 {[%clk 0:00:31.5]} 44. Bxf7 {[%clk 0:00:04.1]} 44... Kxf7 {[%clk
0:00:33.4]} 45. Qd3 {[%clk 0:00:04.2]} 45... Qxa5 {[%clk 0:00:32.4]} 46. Qc4+
{[%clk 0:00:05.4]} 46... Kf8 {[%clk 0:00:32.3]} 47. Rd5 {[%clk 0:00:04.1]} 47...
Qa1+ {[%clk 0:00:32.5]} 48. Kh2 {[%clk 0:00:05.3]} 48... Qc3 {[%clk 0:00:32.2]}
49. Qxa6 {[%clk 0:00:06.3]} 49... Qc7+ {[%clk 0:00:21.4]} 50. g3 {[%clk
0:00:06.6]} 50... Qc2 {[%clk 0:00:18.3]} 51. Qa8+ {[%clk 0:00:07.1]} 51... Kf7
{[%clk 0:00:18.4]} 52. Qa7 {[%clk 0:00:04.7]} 52... b3 {[%clk 0:00:16.4]} 53.
Rd7 {[%clk 0:00:05.6]} 53... Qe2 {[%clk 0:00:16.3]} 54. Rb7 {[%clk 0:00:06.1]}
54... b2 {[%clk 0:00:16.5]} 55. Qa2+ {[%clk 0:00:07]} 55... Kf6 {[%clk 0:00:15]}
56. Rxb2 {[%clk 0:00:07]} 56... Qe5 {[%clk 0:00:15.1]} 57. Rb6+ {[%clk
0:00:06.8]} 57... Kg7 {[%clk 0:00:15.1]} 58. Rb7 {[%clk 0:00:06.9]} 58... h5
{[%clk 0:00:14.6]} 59. Qa7 {[%clk 0:00:06.5]} 59... Kf7 {[%clk 0:00:15.4]} 60.
Qa2+ {[%clk 0:00:07.1]} 60... Kg7 {[%clk 0:00:16.5]} 61. h4 {[%clk 0:00:08.2]}
61... f4 {[%clk 0:00:15]} 62. Qb3 {[%clk 0:00:02.7]} 62... fxg3+ {[%clk
0:00:14]} 63. fxg3 {[%clk 0:00:04.6]} 63... Qe2+ {[%clk 0:00:14.1]} 64. Kg1
{[%clk 0:00:05.9]} 64... Kh6 {[%clk 0:00:09.4]} 65. Rb5 {[%clk 0:00:03.6]} 65...
Qe1+ {[%clk 0:00:07.6]} 66. Kg2 {[%clk 0:00:04.8]} 66... Qe2+ {[%clk 0:00:08.7]}
67. Kh3 {[%clk 0:00:06.2]} 67... Qf1+ {[%clk 0:00:06.4]} 68. Kh2 {[%clk
0:00:07.4]} 68... Qf2+ {[%clk 0:00:06.9]} 69. Kh3 {[%clk 0:00:08.9]} 69... Qf1+
{[%clk 0:00:05.9]} 70. Kh2 {[%clk 0:00:10.8]} 70... Qf2+ {[%clk 0:00:06.9]} 71.
Kh1 {[%clk 0:00:12.3]} 71... Qf1+ {[%clk 0:00:04.6]} 72. Kh2 {[%clk 0:00:13.2]}
72... Qf2+ {[%clk 0:00:05.9]} 73. Kh3 {[%clk 0:00:14.5]} 73... Qf1+ {[%clk
0:00:05.3]} 74. Kh2 {[%clk 0:00:15.7]} 74... Qf2+ {[%clk 0:00:06.6]} 75. Kh1
{[%clk 0:00:17.2]} 75... Qf1+ {[%clk 0:00:05.3]} 76. Kh2 {[%clk 0:00:18.6]}
1/2-1/2